[Event "*** Titled Tuesday Blitz"]
[Site "Chess.com"]
[Date "2019.07.02"]
[Round "6"]
[White "Galileo22"]
[Black "vanea_03"]
[Result "0-1"]
[WhiteElo "2394"]
[BlackElo "2654"]
[TimeControl "180+2"]
[EndTime "14:22:54 PDT"]
[Termination "vanea_03 won by resignation"]

1. d4 {[%clk 0:03:01.9]} 1... Nf6 {[%clk 0:02:59.5]} 2. Nf3 {[%clk 0:03:02.8]}
2... d5 {[%clk 0:02:56.3]} 3. e3 {[%clk 0:03:03.5]} 3... e6 {[%clk 0:02:56.4]}
4. Bd3 {[%clk 0:03:04]} 4... b6 {[%clk 0:02:55.2]} 5. Nbd2 {[%clk 0:03:03.9]}
5... Bb7 {[%clk 0:02:56.6]} 6. O-O {[%clk 0:03:04.6]} 6... Bd6 {[%clk
0:02:56.9]} 7. b3 {[%clk 0:02:57.7]} 7... O-O {[%clk 0:02:57.2]} 8. Bb2 {[%clk
0:02:59.3]} 8... Ne4 {[%clk 0:02:58.2]} 9. c4 {[%clk 0:02:47.2]} 9... Nd7 {[%clk
0:02:56]} 10. Ne5 {[%clk 0:02:18.3]} 10... Bxe5 {[%clk 0:02:42.8]} 11. dxe5
{[%clk 0:02:14]} 11... Nxd2 {[%clk 0:02:38.2]} 12. Qxd2 {[%clk 0:02:11.8]} 12...
Nc5 {[%clk 0:02:39.3]} 13. Rfd1 {[%clk 0:01:33.1]} 13... dxc4 {[%clk 0:02:29.1]}
14. Bxc4 {[%clk 0:01:30.3]} 14... Qg5 {[%clk 0:02:23.1]} 15. Bf1 {[%clk
0:01:21.4]} 15... Bf3 {[%clk 0:02:14.8]} 16. Rdc1 {[%clk 0:00:56.1]} 16... Rfd8
{[%clk 0:02:10.1]} 17. Qc2 {[%clk 0:00:54.6]} 17... Rd7 {[%clk 0:02:00.1]} 18.
Bd4 {[%clk 0:00:52]} 18... Nb7 {[%clk 0:01:41.5]} 19. Kh1 {[%clk 0:00:48.1]}
19... Bd5 {[%clk 0:01:37.4]} 20. f4 {[%clk 0:00:25.1]} 20... Qg4 {[%clk
0:01:32.8]} 21. Bb2 {[%clk 0:00:19.8]} 21... Nc5 {[%clk 0:01:26]} 22. Qe2 {[%clk
0:00:15.5]} 22... Qg6 {[%clk 0:01:21.1]} 23. Bd4 {[%clk 0:00:15.7]} 23... Ne4
{[%clk 0:01:18.7]} 24. Rd1 {[%clk 0:00:14]} 24... Rad8 {[%clk 0:01:14.8]} 25.
Kg1 {[%clk 0:00:13.9]} 25... h5 {[%clk 0:01:08.8]} 26. Rac1 {[%clk 0:00:13]}
26... h4 {[%clk 0:01:08.8]} 27. Qe1 {[%clk 0:00:10.6]} 27... h3 {[%clk
0:01:06.7]} 28. g3 {[%clk 0:00:11.4]} 28... Ng5 {[%clk 0:00:47.3]} 29. fxg5
{[%clk 0:00:09.8]} 29... Qe4 {[%clk 0:00:45.3]} 30. Qe2 {[%clk 0:00:09.1]} 30...
Qh1+ {[%clk 0:00:44.1]} 31. Kf2 {[%clk 0:00:10.5]} 31... c5 {[%clk 0:00:30.4]}
32. Bb2 {[%clk 0:00:09.5]} 32... Qxh2+ {[%clk 0:00:15.8]} 33. Ke1 {[%clk
0:00:09.8]} 33... Qxg3+ {[%clk 0:00:17.3]} 34. Qf2 {[%clk 0:00:09.9]} 34... Qg4
{[%clk 0:00:17.9]} 35. Be2 {[%clk 0:00:09.1]} 35... Qxg5 {[%clk 0:00:17.3]} 36.
e4 {[%clk 0:00:09.9]} 36... Bxe4 {[%clk 0:00:16.8]} 37. Rxd7 {[%clk 0:00:10.7]}
37... Rxd7 {[%clk 0:00:18.7]} 38. Rd1 {[%clk 0:00:11]} 38... Rxd1+ {[%clk
0:00:19.7]} 39. Kxd1 {[%clk 0:00:11.2]} 39... Qg2 {[%clk 0:00:17.2]} 40. Qe3
{[%clk 0:00:04]} 40... h2 {[%clk 0:00:17.7]} 41. Bc1 {[%clk 0:00:05.4]} 41...
h1=Q+ {[%clk 0:00:18.8]} 42. Kd2 {[%clk 0:00:07.3]} 42... Bf3 {[%clk 0:00:17.2]}
43. Qxf3 {[%clk 0:00:05.7]} 43... Qxf3 {[%clk 0:00:18.3]} 44. Bxf3 {[%clk
0:00:07.6]} 44... Qxf3 {[%clk 0:00:20.2]} 45. Kc2 {[%clk 0:00:08.7]} 45... Qd5
{[%clk 0:00:22.1]} 46. Kb2 {[%clk 0:00:10.6]} 46... Qxe5+ {[%clk 0:00:23]} 47.
Kb1 {[%clk 0:00:12.5]} 47... Qd5 {[%clk 0:00:24.9]} 0-1

[Event "*** Titled Tuesday Blitz"]
[Site "Chess.com"]
[Date "2019.07.02"]
[Round "6"]
[White "XiaoKangZhong"]
[Black "checkmatequen"]
[Result "1-0"]
[WhiteElo "2253"]
[BlackElo "2216"]
[TimeControl "180+2"]
[EndTime "14:22:54 PDT"]
[Termination "XiaoKangZhong won by resignation"]

1. e4 {[%clk 0:03:01.9]} 1... c5 {[%clk 0:02:47.4]} 2. Nf3 {[%clk 0:03:01.3]}
2... e6 {[%clk 0:02:47.9]} 3. c3 {[%clk 0:03:00.3]} 3... d5 {[%clk 0:02:48.5]}
4. exd5 {[%clk 0:03:01.4]} 4... Qxd5 {[%clk 0:02:50.4]} 5. d4 {[%clk 0:03:03]}
5... Nf6 {[%clk 0:02:51.2]} 6. Bb5+ {[%clk 0:02:55.6]} 6... Nc6 {[%clk
0:02:50.3]} 7. O-O {[%clk 0:02:53.5]} 7... Be7 {[%clk 0:02:49.6]} 8. Bf4 {[%clk
0:02:32.1]} 8... O-O {[%clk 0:02:49.3]} 9. c4 {[%clk 0:02:31.2]} 9... Qd8 {[%clk
0:02:35]} 10. Bxc6 {[%clk 0:02:22.4]} 10... bxc6 {[%clk 0:02:34.6]} 11. Ne5
{[%clk 0:02:22.9]} 11... Bb7 {[%clk 0:02:32.4]} 12. dxc5 {[%clk 0:02:17.4]}
12... Bxc5 {[%clk 0:02:29.2]} 13. Nc3 {[%clk 0:02:18.9]} 13... Qe7 {[%clk
0:02:25.3]} 14. Na4 {[%clk 0:02:11.2]} 14... Rfd8 {[%clk 0:02:19.7]} 15. Qc2
{[%clk 0:02:08.8]} 15... Nd7 {[%clk 0:02:08]} 16. Nxd7 {[%clk 0:02:03.7]} 16...
Rxd7 {[%clk 0:02:09.9]} 17. Nxc5 {[%clk 0:02:03.2]} 17... Qxc5 {[%clk
0:02:11.4]} 18. Be3 {[%clk 0:02:04.7]} 18... Qh5 {[%clk 0:02:06.9]} 19. b4
{[%clk 0:02:01.6]} 19... e5 {[%clk 0:01:53.4]} 20. Rfd1 {[%clk 0:01:58.1]} 20...
Rad8 {[%clk 0:01:52.2]} 21. Rxd7 {[%clk 0:01:52.5]} 21... Rxd7 {[%clk
0:01:54.1]} 22. f3 {[%clk 0:01:53.6]} 22... f5 {[%clk 0:01:40.6]} 23. Rd1 {[%clk
0:01:51.3]} 23... Qf7 {[%clk 0:01:39.7]} 24. a4 {[%clk 0:01:24]} 24... h6 {[%clk
0:01:21.6]} 25. b5 {[%clk 0:01:16.3]} 25... cxb5 {[%clk 0:01:18.8]} 26. Rxd7
{[%clk 0:00:57.7]} 26... Qxd7 {[%clk 0:01:17.4]} 27. axb5 {[%clk 0:00:58.8]}
27... f4 {[%clk 0:01:12.4]} 28. Bxa7 {[%clk 0:00:56.3]} 28... Bxf3 {[%clk
0:00:55.1]} 29. gxf3 {[%clk 0:00:58.2]} 29... Qxa7+ {[%clk 0:00:56.1]} 30. c5
{[%clk 0:00:55.8]} 30... Qa1+ {[%clk 0:00:55.9]} 31. Kg2 {[%clk 0:00:54.7]}
31... e4 {[%clk 0:00:49.8]} 32. Qxe4 {[%clk 0:00:24]} 32... Qb2+ {[%clk
0:00:49.1]} 33. Kh3 {[%clk 0:00:24.8]} 33... Qxb5 {[%clk 0:00:47.1]} 34. c6
{[%clk 0:00:26]} 34... Qf1+ {[%clk 0:00:45.8]} 35. Kg4 {[%clk 0:00:26.9]} 35...
Qg2+ {[%clk 0:00:46.7]} 36. Kf5 {[%clk 0:00:25.4]} 36... Qg5+ {[%clk 0:00:33.7]}
37. Ke6 {[%clk 0:00:23.9]} 37... Qf6+ {[%clk 0:00:34]} 38. Kd5 {[%clk
0:00:22.4]} 38... Qd8+ {[%clk 0:00:34.5]} 39. Ke6 {[%clk 0:00:18.2]} 39... Qe8+
{[%clk 0:00:31.8]} 40. Kf5 {[%clk 0:00:18.9]} 40... Qf7+ {[%clk 0:00:32.2]} 41.
Ke5 {[%clk 0:00:19.6]} 41... Qe7+ {[%clk 0:00:32.1]} 42. Kd4 {[%clk 0:00:20.8]}
42... Qb4+ {[%clk 0:00:31.5]} 43. Kd3 {[%clk 0:00:21.5]} 43... Qb3+ {[%clk
0:00:31.5]} 44. Kd4 {[%clk 0:00:23]} 44... Qb4+ {[%clk 0:00:32.4]} 45. Kd5
{[%clk 0:00:23.9]} 45... Qb5+ {[%clk 0:00:21.3]} 46. Kd6 {[%clk 0:00:24.9]}
46... Qb8+ {[%clk 0:00:16.9]} 47. c7 {[%clk 0:00:26.1]} 47... Qb6+ {[%clk
0:00:18.1]} 48. Kd7 {[%clk 0:00:25.7]} 48... Qb5+ {[%clk 0:00:18.5]} 49. Qc6
{[%clk 0:00:26.4]} 49... Qf5+ {[%clk 0:00:19.2]} 50. Qe6+ {[%clk 0:00:27.1]}
50... Qxe6+ {[%clk 0:00:20.2]} 51. Kxe6 {[%clk 0:00:29]} 1-0

[Event "*** Titled Tuesday Blitz"]
[Site "Chess.com"]
[Date "2019.07.02"]
[Round "6"]
[White "TheCount"]
[Black "Tjktiger"]
[Result "0-1"]
[WhiteElo "2781"]
[BlackElo "2876"]
[TimeControl "180+2"]
[EndTime "14:22:58 PDT"]
[Termination "Tjktiger won by checkmate"]

1. Nf3 {[%clk 0:02:40.4]} 1... c5 {[%clk 0:02:53.8]} 2. g3 {[%clk 0:02:41.2]}
2... Nc6 {[%clk 0:02:54.5]} 3. d4 {[%clk 0:02:42.3]} 3... cxd4 {[%clk
0:02:55.3]} 4. Nxd4 {[%clk 0:02:44.2]} 4... g6 {[%clk 0:02:56.2]} 5. Bg2 {[%clk
0:02:45.1]} 5... Bg7 {[%clk 0:02:57.1]} 6. Nxc6 {[%clk 0:02:46.7]} 6... dxc6
{[%clk 0:02:47.9]} 7. Qxd8+ {[%clk 0:02:46.9]} 7... Kxd8 {[%clk 0:02:49.8]} 8.
a4 {[%clk 0:02:48.4]} 8... a5 {[%clk 0:02:47.4]} 9. Nd2 {[%clk 0:02:48.5]} 9...
Be6 {[%clk 0:02:38.1]} 10. Ne4 {[%clk 0:02:41.7]} 10... Bc4 {[%clk 0:02:07.2]}
11. Bf4 {[%clk 0:02:09.7]} 11... f5 {[%clk 0:01:43]} 12. O-O-O+ {[%clk
0:02:07.9]} 12... Kc8 {[%clk 0:01:36.9]} 13. Nc5 {[%clk 0:02:05.6]} 13... Nf6
{[%clk 0:01:35.2]} 14. Rd2 {[%clk 0:01:54.2]} 14... Nd5 {[%clk 0:01:27.2]} 15.
b3 {[%clk 0:01:46.9]} 15... Nxf4 {[%clk 0:00:59.7]} 16. gxf4 {[%clk 0:01:48.8]}
16... Bf7 {[%clk 0:01:00.7]} 17. Rd7 {[%clk 0:01:46.7]} 17... Re8 {[%clk
0:00:45.4]} 18. Rhd1 {[%clk 0:01:45.5]} 18... Rb8 {[%clk 0:00:40.3]} 19. e3
{[%clk 0:01:28.2]} 19... Bc3 {[%clk 0:00:39.1]} 20. R7d3 {[%clk 0:01:08.4]}
20... Bb4 {[%clk 0:00:30.7]} 21. Nd7 {[%clk 0:01:08.7]} 21... Bd6 {[%clk
0:00:32.1]} 22. Ne5 {[%clk 0:01:04.6]} 22... Bxe5 {[%clk 0:00:27.8]} 23. fxe5
{[%clk 0:01:06.5]} 23... Be6 {[%clk 0:00:29.3]} 24. h4 {[%clk 0:00:59.2]} 24...
Kc7 {[%clk 0:00:30.2]} 25. h5 {[%clk 0:01:00.8]} 25... g5 {[%clk 0:00:29.8]} 26.
h6 {[%clk 0:00:59.1]} 26... g4 {[%clk 0:00:29.6]} 27. Kb2 {[%clk 0:00:56.2]}
27... Rg8 {[%clk 0:00:29.9]} 28. Rh1 {[%clk 0:00:42.4]} 28... Rbf8 {[%clk
0:00:30.8]} 29. Rd4 {[%clk 0:00:37.8]} 29... Rg5 {[%clk 0:00:28.9]} 30. Rf4
{[%clk 0:00:29.2]} 30... Rd8 {[%clk 0:00:29]} 31. e4 {[%clk 0:00:27.4]} 31...
Rd4 {[%clk 0:00:25.8]} 32. Kc3 {[%clk 0:00:25.5]} 32... c5 {[%clk 0:00:25.5]}
33. Re1 {[%clk 0:00:15.6]} 33... Bd7 {[%clk 0:00:24.9]} 34. f3 {[%clk
0:00:16.8]} 34... g3 {[%clk 0:00:19]} 35. Rh4 {[%clk 0:00:16.3]} 35... fxe4
{[%clk 0:00:18.2]} 36. f4 {[%clk 0:00:16.8]} 36... Rg8 {[%clk 0:00:16.9]} 37.
Re3 {[%clk 0:00:16.4]} 37... Rd1 {[%clk 0:00:15.7]} 38. Rh5 {[%clk 0:00:08.6]}
38... Rg1 {[%clk 0:00:15.3]} 39. Rg5 {[%clk 0:00:10.1]} 39... Rxg5 {[%clk
0:00:15.3]} 40. fxg5 {[%clk 0:00:12]} 40... Rxg2 {[%clk 0:00:15.7]} 41. Rxe4
{[%clk 0:00:11.6]} 41... Bf5 {[%clk 0:00:15.8]} 42. Rf4 {[%clk 0:00:12.8]} 42...
Rxc2# {[%clk 0:00:17.1]} 0-1

[Event "*** Titled Tuesday Blitz"]
[Site "Chess.com"]
[Date "2019.07.02"]
[Round "6"]
[White "Mazanchenko_Dmitry"]
[Black "Vadim_Biliy"]
[Result "1-0"]
[WhiteElo "2224"]
[BlackElo "2212"]
[TimeControl "180+2"]
[EndTime "14:23:02 PDT"]
[Termination "Mazanchenko_Dmitry won on time"]

1. e4 {[%clk 0:03:01.9]} 1... d6 {[%clk 0:02:59.1]} 2. d4 {[%clk 0:03:02.6]}
2... Nf6 {[%clk 0:02:59.7]} 3. Nc3 {[%clk 0:03:04]} 3... g6 {[%clk 0:03:00.3]}
4. Be3 {[%clk 0:03:03.9]} 4... c6 {[%clk 0:03:00.1]} 5. f3 {[%clk 0:03:04.6]}
5... b5 {[%clk 0:03:00.5]} 6. a3 {[%clk 0:03:05.1]} 6... Nbd7 {[%clk 0:03:00.4]}
7. Qd2 {[%clk 0:03:06.3]} 7... Nb6 {[%clk 0:03:01.1]} 8. b3 {[%clk 0:03:02.6]}
8... Bg7 {[%clk 0:02:59.9]} 9. Bd3 {[%clk 0:03:00.6]} 9... O-O {[%clk
0:02:56.6]} 10. Nge2 {[%clk 0:03:00.9]} 10... a5 {[%clk 0:02:56.8]} 11. Bh6
{[%clk 0:02:59.9]} 11... b4 {[%clk 0:02:46.2]} 12. Nd1 {[%clk 0:02:48.7]} 12...
c5 {[%clk 0:02:30.4]} 13. Bxg7 {[%clk 0:02:41.8]} 13... Kxg7 {[%clk 0:02:30.2]}
14. e5 {[%clk 0:02:42.4]} 14... Nfd5 {[%clk 0:02:05.7]} 15. Be4 {[%clk
0:02:42.6]} 15... cxd4 {[%clk 0:01:57.3]} 16. axb4 {[%clk 0:02:42.8]} 16... dxe5
{[%clk 0:01:44.7]} 17. bxa5 {[%clk 0:02:43.2]} 17... f5 {[%clk 0:01:45.4]} 18.
Bxd5 {[%clk 0:01:25.8]} 18... Nxd5 {[%clk 0:01:40]} 19. c4 {[%clk 0:01:24.8]}
19... Nf6 {[%clk 0:01:13.5]} 20. h4 {[%clk 0:01:18.2]} 20... Bb7 {[%clk
0:01:06.4]} 21. h5 {[%clk 0:01:15.6]} 21... Nxh5 {[%clk 0:00:55.1]} 22. Rxh5
{[%clk 0:01:09.9]} 22... gxh5 {[%clk 0:00:55.5]} 23. Qg5+ {[%clk 0:01:11.2]}
23... Kh8 {[%clk 0:00:55.2]} 24. Qxh5 {[%clk 0:01:07.1]} 24... Rxa5 {[%clk
0:00:54.1]} 25. Rb1 {[%clk 0:00:55.7]} 25... e4 {[%clk 0:00:52.5]} 26. Nf4
{[%clk 0:00:50.1]} 26... Ra6 {[%clk 0:00:40.8]} 27. Nf2 {[%clk 0:00:28]} 27...
Qa5+ {[%clk 0:00:35.9]} 28. Kf1 {[%clk 0:00:23.1]} 28... exf3 {[%clk 0:00:28.4]}
29. gxf3 {[%clk 0:00:23.6]} 29... Qe5 {[%clk 0:00:24.7]} 30. N2h3 {[%clk
0:00:19.9]} 30... Qe3 {[%clk 0:00:18.9]} 31. Ng5 {[%clk 0:00:18.1]} 31... h6
{[%clk 0:00:10.9]} 32. Nfe6 {[%clk 0:00:08.2]} 32... Rxe6 {[%clk 0:00:08]} 33.
Nxe6 {[%clk 0:00:08.2]} 33... Qxe6 {[%clk 0:00:08.5]} 34. Re1 {[%clk 0:00:08.5]}
34... Qf6 {[%clk 0:00:06]} 35. Kf2 {[%clk 0:00:07]} 35... e5 {[%clk 0:00:06.2]}
36. Rh1 {[%clk 0:00:07.1]} 36... e4 {[%clk 0:00:04.6]} 37. Qh2 {[%clk
0:00:04.5]} 37... e3+ {[%clk 0:00:03.9]} 38. Ke1 {[%clk 0:00:04]} 38... d3
{[%clk 0:00:03.4]} 39. Kf1 {[%clk 0:00:02.2]} 39... Qa1+ {[%clk 0:00:02.5]} 40.
Kg2 {[%clk 0:00:03.3]} 40... Rg8+ {[%clk 0:00:03.4]} 41. Kh3 {[%clk 0:00:04.7]}
1-0

[Event "*** Titled Tuesday Blitz"]
[Site "Chess.com"]
[Date "2019.07.02"]
[Round "6"]
[White "JuliaEfremova"]
[Black "lrestevez"]
[Result "1-0"]
[WhiteElo "1987"]
[BlackElo "2131"]
[TimeControl "180+2"]
[EndTime "14:23:17 PDT"]
[Termination "JuliaEfremova won by resignation"]

1. d4 {[%clk 0:02:55.6]} 1... Nf6 {[%clk 0:02:47.8]} 2. Bf4 {[%clk 0:02:54.8]}
2... c5 {[%clk 0:02:47.2]} 3. e3 {[%clk 0:02:55.2]} 3... e6 {[%clk 0:02:47.7]}
4. Nf3 {[%clk 0:02:52]} 4... cxd4 {[%clk 0:02:44.1]} 5. exd4 {[%clk 0:02:52.5]}
5... Qb6 {[%clk 0:02:44.7]} 6. Qc1 {[%clk 0:02:41.2]} 6... Nc6 {[%clk
0:02:43.9]} 7. c3 {[%clk 0:02:41.3]} 7... d6 {[%clk 0:02:44.5]} 8. Bd3 {[%clk
0:02:41.2]} 8... Be7 {[%clk 0:02:45]} 9. O-O {[%clk 0:02:41.7]} 9... O-O {[%clk
0:02:46.5]} 10. Nbd2 {[%clk 0:02:39.7]} 10... Bd7 {[%clk 0:02:43.8]} 11. Nc4
{[%clk 0:02:31.6]} 11... Qc7 {[%clk 0:02:43.7]} 12. h3 {[%clk 0:02:30]} 12...
Rad8 {[%clk 0:02:39.3]} 13. Re1 {[%clk 0:02:28.1]} 13... b5 {[%clk 0:02:39.6]}
14. Ne3 {[%clk 0:02:26.1]} 14... a6 {[%clk 0:02:40.9]} 15. Qd2 {[%clk
0:02:18.8]} 15... Rfe8 {[%clk 0:02:40.8]} 16. Rad1 {[%clk 0:02:19.2]} 16... Na5
{[%clk 0:02:29]} 17. Bh2 {[%clk 0:02:19]} 17... Bc6 {[%clk 0:02:28.3]} 18. Qe2
{[%clk 0:02:11.7]} 18... Bb7 {[%clk 0:02:26.5]} 19. Bb1 {[%clk 0:02:11.6]} 19...
Nc4 {[%clk 0:02:02.2]} 20. Nxc4 {[%clk 0:02:10.9]} 20... bxc4 {[%clk 0:02:00.5]}
21. Nd2 {[%clk 0:02:02]} 21... Bd5 {[%clk 0:01:53.6]} 22. Ne4 {[%clk 0:01:52.7]}
22... Bxe4 {[%clk 0:01:45.2]} 23. Bxe4 {[%clk 0:01:53]} 23... Nxe4 {[%clk
0:01:43.9]} 24. Qxe4 {[%clk 0:01:54.1]} 24... Qb6 {[%clk 0:01:43.5]} 25. Re2
{[%clk 0:01:48.8]} 25... d5 {[%clk 0:01:44.7]} 26. Qg4 {[%clk 0:01:46]} 26...
Bd6 {[%clk 0:01:44.5]} 27. Be5 {[%clk 0:01:42.1]} 27... Bxe5 {[%clk 0:01:42.4]}
28. dxe5 {[%clk 0:01:43]} 28... Qc7 {[%clk 0:01:20.6]} 29. h4 {[%clk 0:01:38.5]}
29... a5 {[%clk 0:01:20.2]} 30. h5 {[%clk 0:01:38.6]} 30... h6 {[%clk
0:01:21.5]} 31. Rd4 {[%clk 0:01:22.6]} 31... Qe7 {[%clk 0:01:17.5]} 32. Qg3
{[%clk 0:01:20]} 32... a4 {[%clk 0:00:52.4]} 33. a3 {[%clk 0:01:14.3]} 33... Rb8
{[%clk 0:00:48.8]} 34. Rg4 {[%clk 0:01:13.7]} 34... f5 {[%clk 0:00:49.4]} 35.
exf6 {[%clk 0:01:12.5]} 35... Qxf6 {[%clk 0:00:50.1]} 36. Rg6 {[%clk 0:01:12.6]}
36... Qf7 {[%clk 0:00:45.3]} 37. Rxh6 {[%clk 0:01:07.3]} 37... Rf8 {[%clk
0:00:39.1]} 38. Rg6 {[%clk 0:01:06.7]} 38... Rb6 {[%clk 0:00:36]} 39. h6 {[%clk
0:01:06.9]} 39... Qf5 {[%clk 0:00:28.3]} 40. Rxg7+ {[%clk 0:00:52]} 40... Kh8
{[%clk 0:00:29]} 41. h7 {[%clk 0:00:44.4]} 41... Rbb8 {[%clk 0:00:23.7]} 42. Re5
{[%clk 0:00:32]} 42... Qf6 {[%clk 0:00:22.1]} 43. Reg5 {[%clk 0:00:31.3]} 43...
Rbe8 {[%clk 0:00:11.6]} 44. Rg8+ {[%clk 0:00:30.5]} 44... Kxh7 {[%clk
0:00:09.1]} 45. Rh5+ {[%clk 0:00:28.2]} 1-0

[Event "*** Titled Tuesday Blitz"]
[Site "Chess.com"]
[Date "2019.07.02"]
[Round "6"]
[White "Airquake"]
[Black "Etoilegeniale"]
[Result "0-1"]
[WhiteElo "2651"]
[BlackElo "2494"]
[TimeControl "180+2"]
[EndTime "14:23:17 PDT"]
[Termination "Etoilegeniale won on time"]

1. e4 {[%clk 0:03:01.9]} 1... c5 {[%clk 0:02:57.5]} 2. Nf3 {[%clk 0:03:03.2]}
2... d6 {[%clk 0:02:57.9]} 3. d4 {[%clk 0:03:01]} 3... cxd4 {[%clk 0:02:58.5]}
4. Nxd4 {[%clk 0:03:02.9]} 4... Nf6 {[%clk 0:02:59.1]} 5. Nc3 {[%clk 0:03:03.5]}
5... a6 {[%clk 0:03:00.2]} 6. Be2 {[%clk 0:03:03.8]} 6... e5 {[%clk 0:03:00.6]}
7. Nb3 {[%clk 0:03:05.5]} 7... Be7 {[%clk 0:03:01.2]} 8. O-O {[%clk 0:03:06.5]}
8... O-O {[%clk 0:03:02]} 9. f4 {[%clk 0:03:07]} 9... exf4 {[%clk 0:03:01.9]}
10. Bxf4 {[%clk 0:03:06.9]} 10... Nc6 {[%clk 0:03:02.7]} 11. Qd2 {[%clk
0:03:03.1]} 11... Be6 {[%clk 0:03:01.1]} 12. Rad1 {[%clk 0:03:02.6]} 12... Ne5
{[%clk 0:03:01.1]} 13. Nd4 {[%clk 0:03:00.9]} 13... Qc7 {[%clk 0:02:42.8]} 14.
Kh1 {[%clk 0:02:45.2]} 14... Rfe8 {[%clk 0:02:41.9]} 15. Bg5 {[%clk 0:02:23.5]}
15... Rac8 {[%clk 0:02:13.2]} 16. Nf5 {[%clk 0:02:14.1]} 16... Bxf5 {[%clk
0:02:04.8]} 17. Rxf5 {[%clk 0:02:14.5]} 17... Ned7 {[%clk 0:01:57]} 18. Rdf1
{[%clk 0:02:11.9]} 18... b5 {[%clk 0:01:38.5]} 19. a3 {[%clk 0:02:11.4]} 19...
Qc6 {[%clk 0:00:58]} 20. Bd1 {[%clk 0:01:51.1]} 20... Qc4 {[%clk 0:00:31.7]} 21.
h3 {[%clk 0:01:39.8]} 21... Bf8 {[%clk 0:00:18.7]} 22. Be2 {[%clk 0:01:06.8]}
22... Qe6 {[%clk 0:00:19.2]} 23. Bd3 {[%clk 0:01:03.7]} 23... Nh5 {[%clk
0:00:15.3]} 24. Qf2 {[%clk 0:00:56.6]} 24... f6 {[%clk 0:00:15.8]} 25. Be3
{[%clk 0:00:49.6]} 25... g6 {[%clk 0:00:16.9]} 26. Rf3 {[%clk 0:00:50.1]} 26...
Ne5 {[%clk 0:00:17.1]} 27. g4 {[%clk 0:00:39.1]} 27... Nxf3 {[%clk 0:00:18]} 28.
Qxf3 {[%clk 0:00:41]} 28... Ng7 {[%clk 0:00:18.8]} 29. Nd5 {[%clk 0:00:39.1]}
29... Be7 {[%clk 0:00:19.9]} 30. Bd4 {[%clk 0:00:33.4]} 30... Rf8 {[%clk
0:00:20.6]} 31. Bxf6 {[%clk 0:00:33.6]} 31... Bxf6 {[%clk 0:00:20.9]} 32. Nxf6+
{[%clk 0:00:34.4]} 32... Kh8 {[%clk 0:00:22.1]} 33. g5 {[%clk 0:00:33.3]} 33...
Qe5 {[%clk 0:00:21.9]} 34. Qg4 {[%clk 0:00:28]} 34... Nh5 {[%clk 0:00:22.8]} 35.
Rf3 {[%clk 0:00:26.8]} 35... Rcd8 {[%clk 0:00:20.8]} 36. Qh4 {[%clk 0:00:18.1]}
36... Rf7 {[%clk 0:00:19.7]} 37. Ng4 {[%clk 0:00:12.4]} 37... Qg7 {[%clk
0:00:18.5]} 38. Qf2 {[%clk 0:00:10.1]} 38... Rxf3 {[%clk 0:00:18.7]} 39. Qxf3
{[%clk 0:00:12]} 39... Rf8 {[%clk 0:00:19.9]} 40. Qe3 {[%clk 0:00:13.6]} 40...
Qe7 {[%clk 0:00:19.5]} 41. e5 {[%clk 0:00:13]} 41... dxe5 {[%clk 0:00:20]} 42.
h4 {[%clk 0:00:07.4]} 42... Nf4 {[%clk 0:00:19.9]} 43. Be4 {[%clk 0:00:03.8]}
43... Qe6 {[%clk 0:00:19.5]} 44. Bf3 {[%clk 0:00:04.5]} 44... Re8 {[%clk
0:00:19.1]} 45. Nf6 {[%clk 0:00:05.1]} 45... Qh3+ {[%clk 0:00:19.6]} 46. Kg1
{[%clk 0:00:05.9]} 46... Qg3+ {[%clk 0:00:20.9]} 47. Kf1 {[%clk 0:00:07]} 47...
Rd8 {[%clk 0:00:20.6]} 48. Ne4 {[%clk 0:00:04]} 48... Rd1+ {[%clk 0:00:20.6]}
49. Bxd1 {[%clk 0:00:03]} 49... Qxe3 {[%clk 0:00:21.3]} 0-1